[Event "Late-Titled-Tuesday-Blitz-February-06-2024"]
[Site "Chess.com"]
[Date "2024.02.06"]
[Round "3"]
[White "j_coca"]
[Black "Mikhail_Golubev"]
[Result "0-1"]
[WhiteElo "2450"]
[BlackElo "2665"]
[TimeControl "180+1"]
[EndTime "14:27:45 PST"]
[Termination "Mikhail_Golubev won by resignation"]

1. f4 {[%clk 0:03:00.9]} 1... Nf6 {[%clk 0:02:57.8]} 2. Nf3 {[%clk 0:02:59.8]}
2... Nc6 {[%clk 0:02:58.4]} 3. e3 {[%clk 0:02:59.1]} 3... d6 {[%clk 0:02:57.6]}
4. d4 {[%clk 0:02:54.3]} 4... d5 {[%clk 0:02:55.7]} 5. c3 {[%clk 0:02:47.2]}
5... g6 {[%clk 0:02:52.2]} 6. Bd3 {[%clk 0:02:31.6]} 6... Bg7 {[%clk 0:02:51.7]}
7. Nbd2 {[%clk 0:02:29.9]} 7... O-O {[%clk 0:02:49.9]} 8. O-O {[%clk 0:02:28.8]}
8... Bf5 {[%clk 0:02:45.5]} 9. Qc2 {[%clk 0:02:27.6]} 9... Bxd3 {[%clk
0:02:38.2]} 10. Qxd3 {[%clk 0:02:26.5]} 10... e6 {[%clk 0:02:38.9]} 11. Ne5
{[%clk 0:02:23.7]} 11... Nd7 {[%clk 0:02:29.2]} 12. e4 {[%clk 0:02:22.1]} 12...
dxe4 {[%clk 0:02:12.1]} 13. Qxe4 {[%clk 0:02:20.5]} 13... Nf6 {[%clk 0:01:53.1]}
14. Qf3 {[%clk 0:02:17.9]} 14... Qd5 {[%clk 0:01:45.1]} 15. Nxc6 {[%clk
0:02:15.3]} 15... bxc6 {[%clk 0:01:45.3]} 16. Nb3 {[%clk 0:02:13]} 16... a5
{[%clk 0:01:36]} 17. Qe2 {[%clk 0:02:09.2]} 17... a4 {[%clk 0:01:26.6]} 18. Nc5
{[%clk 0:02:08.5]} 18... Nd7 {[%clk 0:01:20]} 19. Nxd7 {[%clk 0:02:02.4]} 19...
Qxd7 {[%clk 0:01:20.9]} 20. Be3 {[%clk 0:02:02]} 20... Rfb8 {[%clk 0:01:11.4]}
21. Rf2 {[%clk 0:01:56.9]} 21... Qd5 {[%clk 0:01:08.9]} 22. g4 {[%clk
0:01:49.4]} 22... c5 {[%clk 0:00:54.3]} 23. dxc5 {[%clk 0:01:42.8]} 23... a3
{[%clk 0:00:54.4]} 24. b3 {[%clk 0:01:38.2]} 24... Bxc3 {[%clk 0:00:49.4]} 25.
Rd1 {[%clk 0:01:38.3]} 25... Qe4 {[%clk 0:00:46.6]} 26. f5 {[%clk 0:01:33.7]}
26... exf5 {[%clk 0:00:45]} 27. gxf5 {[%clk 0:01:33.2]} 27... Re8 {[%clk
0:00:42.3]} 28. fxg6 {[%clk 0:01:28]} 28... hxg6 {[%clk 0:00:40.2]} 29. Qf3
{[%clk 0:01:25.8]} 29... Qxe3 {[%clk 0:00:29.7]} 30. Qxf7+ {[%clk 0:01:25.2]}
30... Kh8 {[%clk 0:00:29.9]} 31. Rd7 {[%clk 0:01:22.3]} 31... Qg5+ {[%clk
0:00:26.8]} 0-1

[Event "Late-Titled-Tuesday-Blitz-February-06-2024"]
[Site "Chess.com"]
[Date "2024.02.06"]
[Round "3"]
[White "StellarChess"]
[Black "familijatop71"]
[Result "1-0"]
[WhiteElo "2574"]
[BlackElo "2316"]
[TimeControl "180+1"]
[EndTime "14:27:47 PST"]
[Termination "StellarChess won on time"]

1. d4 {[%clk 0:03:00.9]} 1... d5 {[%clk 0:02:58.4]} 2. Nf3 {[%clk 0:03:00]} 2...
Nf6 {[%clk 0:02:54.8]} 3. Bf4 {[%clk 0:02:59.6]} 3... c5 {[%clk 0:02:52.3]} 4.
c3 {[%clk 0:02:59.4]} 4... Nc6 {[%clk 0:02:49.2]} 5. e3 {[%clk 0:02:59.5]} 5...
Qb6 {[%clk 0:02:45.5]} 6. Qc1 {[%clk 0:02:56.4]} 6... Bf5 {[%clk 0:02:40.9]} 7.
Be2 {[%clk 0:02:56.1]} 7... e6 {[%clk 0:02:34.1]} 8. O-O {[%clk 0:02:56.5]} 8...
h6 {[%clk 0:02:31.6]} 9. Nbd2 {[%clk 0:02:53.3]} 9... cxd4 {[%clk 0:02:25.9]}
10. exd4 {[%clk 0:02:45.1]} 10... Be7 {[%clk 0:02:22.5]} 11. Bd1 {[%clk
0:02:44.5]} 11... Rc8 {[%clk 0:02:14]} 12. Nb3 {[%clk 0:02:32.3]} 12... O-O
{[%clk 0:02:05.3]} 13. Bc2 {[%clk 0:02:32.6]} 13... Bxc2 {[%clk 0:01:55.6]} 14.
Qxc2 {[%clk 0:02:33.5]} 14... Ne4 {[%clk 0:01:51.7]} 15. Qe2 {[%clk 0:02:29.9]}
15... a5 {[%clk 0:01:39.8]} 16. Nc1 {[%clk 0:02:16.4]} 16... a4 {[%clk
0:01:32.8]} 17. a3 {[%clk 0:02:16.2]} 17... Na5 {[%clk 0:01:27.2]} 18. Ne5
{[%clk 0:02:15.7]} 18... Nc4 {[%clk 0:00:56.6]} 19. Nxc4 {[%clk 0:02:10.3]}
19... Rxc4 {[%clk 0:00:56.2]} 20. Nd3 {[%clk 0:02:07.9]} 20... Bd6 {[%clk
0:00:47]} 21. Bxd6 {[%clk 0:02:04.5]} 21... Qxd6 {[%clk 0:00:41.6]} 22. f3
{[%clk 0:01:56.6]} 22... Nf6 {[%clk 0:00:39.3]} 23. Rfe1 {[%clk 0:01:51.7]}
23... Rcc8 {[%clk 0:00:36.9]} 24. g4 {[%clk 0:01:48.8]} 24... Qb6 {[%clk
0:00:29.1]} 25. Kh1 {[%clk 0:01:45.5]} 25... Nd7 {[%clk 0:00:27.2]} 26. Rg1
{[%clk 0:01:43.5]} 26... Rfe8 {[%clk 0:00:17.5]} 27. g5 {[%clk 0:01:43.6]} 27...
hxg5 {[%clk 0:00:17.2]} 28. Rxg5 {[%clk 0:01:44.5]} 28... Nf6 {[%clk 0:00:12.2]}
29. Qe5 {[%clk 0:01:34.4]} 29... Kf8 {[%clk 0:00:07]} 30. Rag1 {[%clk
0:01:34.9]} 30... Qb5 {[%clk 0:00:04]} 31. Rxg7 {[%clk 0:01:32.6]} 31... Qxd3
{[%clk 0:00:03.8]} 32. Qxf6 {[%clk 0:01:32.6]} 1-0

[Event "Late-Titled-Tuesday-Blitz-February-06-2024"]
[Site "Chess.com"]
[Date "2024.02.06"]
[Round "3"]
[White "jinbojinbo"]
[Black "PoXerStar"]
[Result "1-0"]
[WhiteElo "2627"]
[BlackElo "2430"]
[TimeControl "180+1"]
[EndTime "14:27:54 PST"]
[Termination "jinbojinbo won on time"]

1. Nf3 {[%clk 0:03:00.9]} 1... d5 {[%clk 0:02:59.2]} 2. e3 {[%clk 0:03:01]} 2...
Nf6 {[%clk 0:02:59.3]} 3. c4 {[%clk 0:03:00.8]} 3... e6 {[%clk 0:02:58.9]} 4. b3
{[%clk 0:03:00.1]} 4... c6 {[%clk 0:02:59]} 5. Bb2 {[%clk 0:03:00.5]} 5... Bd6
{[%clk 0:02:58.6]} 6. Nc3 {[%clk 0:02:59.3]} 6... Nbd7 {[%clk 0:02:58.4]} 7. d4
{[%clk 0:02:57]} 7... O-O {[%clk 0:02:58.5]} 8. Bd3 {[%clk 0:02:57.2]} 8... b6
{[%clk 0:02:58.6]} 9. O-O {[%clk 0:02:57]} 9... Bb7 {[%clk 0:02:58.9]} 10. Rc1
{[%clk 0:02:50.7]} 10... Qe7 {[%clk 0:02:57.8]} 11. Qe2 {[%clk 0:02:50.4]} 11...
Rfe8 {[%clk 0:02:32.9]} 12. e4 {[%clk 0:02:48.9]} 12... dxe4 {[%clk 0:02:33.2]}
13. Nxe4 {[%clk 0:02:49.8]} 13... Nxe4 {[%clk 0:02:33.6]} 14. Qxe4 {[%clk
0:02:50.7]} 14... Nf6 {[%clk 0:02:32.9]} 15. Qh4 {[%clk 0:02:50.5]} 15... h6
{[%clk 0:02:02.1]} 16. c5 {[%clk 0:02:46.1]} 16... Bc7 {[%clk 0:01:53.8]} 17.
Ne5 {[%clk 0:02:38.4]} 17... Bxe5 {[%clk 0:01:45.5]} 18. dxe5 {[%clk 0:02:38.2]}
18... Nd5 {[%clk 0:01:45.7]} 19. Qe4 {[%clk 0:02:37.1]} 19... g6 {[%clk
0:01:37.6]} 20. h4 {[%clk 0:02:34.5]} 20... Rad8 {[%clk 0:01:29]} 21. h5 {[%clk
0:02:28.2]} 21... Qg5 {[%clk 0:01:00.3]} 22. hxg6 {[%clk 0:02:15.6]} 22... fxg6
{[%clk 0:00:28.5]} 23. Qxg6+ {[%clk 0:02:14.9]} 23... Qxg6 {[%clk 0:00:28.6]}
24. Bxg6 {[%clk 0:02:15.8]} 24... Re7 {[%clk 0:00:29.5]} 25. Rfd1 {[%clk
0:02:11.9]} 25... Rg7 {[%clk 0:00:25.5]} 26. Be4 {[%clk 0:02:11.7]} 26... Rf8
{[%clk 0:00:20.9]} 27. g3 {[%clk 0:02:02.5]} 27... Rg4 {[%clk 0:00:20.2]} 28.
Bg2 {[%clk 0:02:02.1]} 28... Rf7 {[%clk 0:00:18]} 29. Rd4 {[%clk 0:02:00.7]}
29... Rg5 {[%clk 0:00:15.9]} 30. Ra4 {[%clk 0:01:56.9]} 30... a5 {[%clk
0:00:13.7]} 31. cxb6 {[%clk 0:01:56.4]} 31... c5 {[%clk 0:00:11.2]} 32. Rxc5
{[%clk 0:01:52.5]} 32... Rgf5 {[%clk 0:00:07.4]} 33. f4 {[%clk 0:01:46.9]} 33...
Nxb6 {[%clk 0:00:03.6]} 34. Raxa5 {[%clk 0:01:46.2]} 34... Bxg2 {[%clk
0:00:03.8]} 35. Kxg2 {[%clk 0:01:47.1]} 35... Nd5 {[%clk 0:00:03.9]} 36. Ra8+
{[%clk 0:01:45.8]} 36... Kh7 {[%clk 0:00:04]} 37. Rca5 {[%clk 0:01:44.9]} 1-0

[Event "Late-Titled-Tuesday-Blitz-February-06-2024"]
[Site "Chess.com"]
[Date "2024.02.06"]
[Round "3"]
[White "gurudub"]
[Black "RantomOpening"]
[Result "1-0"]
[WhiteElo "2118"]
[BlackElo "2520"]
[TimeControl "180+1"]
[EndTime "14:27:59 PST"]
[Termination "gurudub won by checkmate"]

1. e4 {[%clk 0:02:59.9]} 1... c5 {[%clk 0:03:00.2]} 2. Nf3 {[%clk 0:02:59.3]}
2... e6 {[%clk 0:02:59.7]} 3. d4 {[%clk 0:02:59.3]} 3... cxd4 {[%clk 0:03:00.6]}
4. Nxd4 {[%clk 0:03:00.2]} 4... Nf6 {[%clk 0:03:01.2]} 5. Bd3 {[%clk 0:02:52.3]}
5... Nc6 {[%clk 0:03:01.4]} 6. Be3 {[%clk 0:02:49.1]} 6... d5 {[%clk 0:03:00.5]}
7. exd5 {[%clk 0:02:31.4]} 7... Nxd5 {[%clk 0:03:00.4]} 8. Nxc6 {[%clk
0:02:27.5]} 8... bxc6 {[%clk 0:03:01.3]} 9. Bd2 {[%clk 0:02:19.5]} 9... Qb6
{[%clk 0:02:31.8]} 10. b3 {[%clk 0:01:37.9]} 10... Qd4 {[%clk 0:02:30.9]} 11. c4
{[%clk 0:01:19.5]} 11... Qxa1 {[%clk 0:02:15.2]} 12. cxd5 {[%clk 0:01:19.6]}
12... Qe5+ {[%clk 0:02:15.4]} 13. Be3 {[%clk 0:01:19.9]} 13... Bb4+ {[%clk
0:02:14.8]} 14. Nd2 {[%clk 0:01:19.2]} 14... Qxd5 {[%clk 0:02:14.5]} 15. Qc2
{[%clk 0:01:14.6]} 15... Bxd2+ {[%clk 0:02:01.1]} 16. Bxd2 {[%clk 0:01:12.2]}
16... Qe5+ {[%clk 0:02:00.1]} 17. Be3 {[%clk 0:01:11.9]} 17... Qa1+ {[%clk
0:02:00]} 18. Bc1 {[%clk 0:01:09]} 18... Bd7 {[%clk 0:01:54.4]} 19. O-O {[%clk
0:01:07.2]} 19... Qf6 {[%clk 0:01:48.1]} 20. Bb2 {[%clk 0:01:05.4]} 20... Qg5
{[%clk 0:01:47.8]} 21. f4 {[%clk 0:00:26.2]} 21... Qa5 {[%clk 0:01:46.2]} 22.
Bxg7 {[%clk 0:00:20.7]} 22... Rg8 {[%clk 0:01:46.3]} 23. Bf6 {[%clk 0:00:19.4]}
23... Qd5 {[%clk 0:01:36.1]} 24. Be4 {[%clk 0:00:16.9]} 24... Qb5 {[%clk
0:01:32.9]} 25. Rd1 {[%clk 0:00:16.9]} 25... Qb6+ {[%clk 0:01:32.1]} 26. Kh1
{[%clk 0:00:15.9]} 26... Qc7 {[%clk 0:01:17.7]} 27. Qc5 {[%clk 0:00:15.5]} 27...
Bc8 {[%clk 0:01:11.9]} 28. Bxc6+ {[%clk 0:00:14.5]} 28... Bd7 {[%clk 0:01:09.5]}
29. Qe7# {[%clk 0:00:14.5]} 1-0

[Event "Late-Titled-Tuesday-Blitz-February-06-2024"]
[Site "Chess.com"]
[Date "2024.02.06"]
[Round "3"]
[White "dmitrijiIM"]
[Black "ansko1999"]
[Result "1/2-1/2"]
[WhiteElo "2933"]
[BlackElo "2690"]
[TimeControl "180+1"]
[EndTime "14:28:01 PST"]
[Termination "Game drawn by repetition"]

1. d4 {[%clk 0:03:00]} 1... Nf6 {[%clk 0:02:59.2]} 2. c4 {[%clk 0:02:53.9]} 2...
e6 {[%clk 0:02:59.4]} 3. Nc3 {[%clk 0:02:54]} 3... Bb4 {[%clk 0:02:59.2]} 4. e3
{[%clk 0:02:54.2]} 4... O-O {[%clk 0:02:59.1]} 5. Bd2 {[%clk 0:02:54.2]} 5... b6
{[%clk 0:02:57.1]} 6. Bd3 {[%clk 0:02:53.7]} 6... Bb7 {[%clk 0:02:54.6]} 7. Nf3
{[%clk 0:02:53.7]} 7... d5 {[%clk 0:02:50.8]} 8. cxd5 {[%clk 0:02:53.3]} 8...
exd5 {[%clk 0:02:50.9]} 9. Rc1 {[%clk 0:02:53.7]} 9... Re8 {[%clk 0:02:49.6]}
10. O-O {[%clk 0:02:53]} 10... Bf8 {[%clk 0:02:49.1]} 11. Ne5 {[%clk 0:02:52.1]}
11... c5 {[%clk 0:02:48.7]} 12. f4 {[%clk 0:02:49.9]} 12... Nc6 {[%clk 0:02:49]}
13. Ne2 {[%clk 0:02:49]} 13... Ne4 {[%clk 0:02:24.9]} 14. Be1 {[%clk 0:02:06.6]}
14... Rc8 {[%clk 0:02:05.9]} 15. Bxe4 {[%clk 0:02:06]} 15... dxe4 {[%clk
0:02:06.8]} 16. Nxf7 {[%clk 0:02:06.4]} 16... Kxf7 {[%clk 0:02:05.6]} 17. Qb3+
{[%clk 0:02:06.4]} 17... c4 {[%clk 0:02:05.5]} 18. Qxc4+ {[%clk 0:01:12.1]}
18... Kg6 {[%clk 0:02:03.8]} 19. f5+ {[%clk 0:01:12.5]} 19... Kh6 {[%clk
0:02:03.1]} 20. Bg3 {[%clk 0:01:05.3]} 20... Ne5 {[%clk 0:01:50.1]} 21. Qg8
{[%clk 0:01:05.3]} 21... Be7 {[%clk 0:01:40.2]} 22. Rxc8 {[%clk 0:01:00.1]}
22... Bxc8 {[%clk 0:01:31.9]} 23. Bf4+ {[%clk 0:00:55.4]} 23... Bg5 {[%clk
0:01:11.2]} 24. Bxg5+ {[%clk 0:00:54.6]} 24... Qxg5 {[%clk 0:01:10.4]} 25. Qxe8
{[%clk 0:00:54.8]} 25... Qxe3+ {[%clk 0:01:10.2]} 26. Kh1 {[%clk 0:00:55.1]}
26... Qxe2 {[%clk 0:01:06.5]} 27. Ra1 {[%clk 0:00:53.7]} 27... Qxb2 {[%clk
0:00:52.7]} 28. Rf1 {[%clk 0:00:53.6]} 28... Qe2 {[%clk 0:00:52.6]} 29. Ra1
{[%clk 0:00:35.5]} 29... Qb2 {[%clk 0:00:51]} 30. Rf1 {[%clk 0:00:35.6]} 30...
Qe2 {[%clk 0:00:51.1]} 31. Ra1 {[%clk 0:00:35.7]} 31... Qb2 {[%clk 0:00:51]}
1/2-1/2

[Event "Late-Titled-Tuesday-Blitz-February-06-2024"]
[Site "Chess.com"]
[Date "2024.02.06"]
[Round "3"]
[White "Arman_Hakemi"]
[Black "ccccvhhhj"]
[Result "1-0"]
[WhiteElo "2666"]
[BlackElo "2454"]
[TimeControl "180+1"]
[EndTime "14:28:01 PST"]
[Termination "Arman_Hakemi won by checkmate"]

1. d4 {[%clk 0:03:00.9]} 1... e5 {[%clk 0:03:00.2]} 2. dxe5 {[%clk 0:03:01.8]}
2... d6 {[%clk 0:03:00.7]} 3. Nf3 {[%clk 0:03:00.9]} 3... Bg4 {[%clk 0:03:00.5]}
4. Bg5 {[%clk 0:02:59.8]} 4... Qd7 {[%clk 0:03:00.5]} 5. exd6 {[%clk 0:02:58.3]}
5... Bxd6 {[%clk 0:03:01.4]} 6. c3 {[%clk 0:02:57.5]} 6... Nc6 {[%clk
0:03:01.4]} 7. Bh4 {[%clk 0:02:55.7]} 7... f6 {[%clk 0:02:59.2]} 8. Bg3 {[%clk
0:02:55.7]} 8... O-O-O {[%clk 0:02:59.7]} 9. Bxd6 {[%clk 0:02:55.3]} 9... Qe6
{[%clk 0:02:53.7]} 10. e3 {[%clk 0:02:40.8]} 10... Rxd6 {[%clk 0:02:53.4]} 11.
Qb3 {[%clk 0:02:41.1]} 11... Qd7 {[%clk 0:02:44.6]} 12. Be2 {[%clk 0:02:40.6]}
12... Nge7 {[%clk 0:02:40.4]} 13. O-O {[%clk 0:02:39.3]} 13... g5 {[%clk
0:02:40.4]} 14. Na3 {[%clk 0:02:39.1]} 14... Be6 {[%clk 0:02:40.3]} 15. Qa4
{[%clk 0:02:34.7]} 15... g4 {[%clk 0:02:36.8]} 16. Nd4 {[%clk 0:02:34.7]} 16...
Kb8 {[%clk 0:02:20.6]} 17. Nab5 {[%clk 0:02:31]} 17... Rd5 {[%clk 0:02:17.3]}
18. Nxe6 {[%clk 0:02:27.7]} 18... Qxe6 {[%clk 0:02:16.5]} 19. Bc4 {[%clk
0:02:28]} 19... Qd7 {[%clk 0:02:09.5]} 20. Bxd5 {[%clk 0:02:27.8]} 20... Qxd5
{[%clk 0:02:10.4]} 21. Rad1 {[%clk 0:02:27.9]} 21... Qg5 {[%clk 0:02:09]} 22.
Nd4 {[%clk 0:02:27.3]} 22... Ne5 {[%clk 0:02:06.9]} 23. Kh1 {[%clk 0:02:15.9]}
23... h5 {[%clk 0:02:03.3]} 24. Qa5 {[%clk 0:02:05]} 24... h4 {[%clk 0:01:49.1]}
25. Nb5 {[%clk 0:02:03.7]} 25... N7c6 {[%clk 0:01:11.5]} 26. Qxc7+ {[%clk
0:02:01.9]} 26... Ka8 {[%clk 0:01:12.1]} 27. Qd6 {[%clk 0:01:59.5]} 27... a6
{[%clk 0:01:09.2]} 28. Nc7+ {[%clk 0:01:58.9]} 28... Ka7 {[%clk 0:01:09.9]} 29.
Qc5+ {[%clk 0:01:57.9]} 29... Kb8 {[%clk 0:01:08.6]} 30. Qb6 {[%clk 0:01:51.3]}
30... h3 {[%clk 0:00:35.5]} 31. g3 {[%clk 0:01:49.3]} 31... Qf5 {[%clk
0:00:30.9]} 32. f3 {[%clk 0:01:49.1]} 32... Kc8 {[%clk 0:00:15.8]} 33. Nd5
{[%clk 0:01:44.9]} 33... Kb8 {[%clk 0:00:12.4]} 34. e4 {[%clk 0:01:42.3]} 34...
Qg6 {[%clk 0:00:08.4]} 35. Qc7+ {[%clk 0:01:41]} 35... Ka7 {[%clk 0:00:07.2]}
36. Qb6+ {[%clk 0:01:40.5]} 36... Kb8 {[%clk 0:00:06.9]} 37. Nc7 {[%clk
0:01:39.5]} 37... gxf3 {[%clk 0:00:02.8]} 38. Nxa6+ {[%clk 0:01:39.5]} 38... Ka8
{[%clk 0:00:03.7]} 39. Nc5 {[%clk 0:01:39.1]} 39... Kb8 {[%clk 0:00:04.6]} 40.
Qxb7# {[%clk 0:01:39.3]} 1-0

[Event "Late-Titled-Tuesday-Blitz-February-06-2024"]
[Site "Chess.com"]
[Date "2024.02.06"]
[Round "3"]
[White "Alex_Sahakyan2006"]
[Black "Vasily85"]
[Result "1-0"]
[WhiteElo "2889"]
[BlackElo "2515"]
[TimeControl "180+1"]
[EndTime "14:28:03 PST"]
[Termination "Alex_Sahakyan2006 won on time"]

1. e4 {[%clk 0:03:00.9]} 1... c5 {[%clk 0:02:55.8]} 2. Nf3 {[%clk 0:02:59.3]}
2... Nc6 {[%clk 0:02:53.2]} 3. Nc3 {[%clk 0:02:54.8]} 3... g6 {[%clk 0:02:51.5]}
4. Bc4 {[%clk 0:02:45.5]} 4... Bg7 {[%clk 0:02:48.5]} 5. d3 {[%clk 0:02:44.8]}
5... Nf6 {[%clk 0:02:35.2]} 6. e5 {[%clk 0:02:39.1]} 6... Ng8 {[%clk 0:02:24.2]}
7. Qe2 {[%clk 0:02:35.9]} 7... d6 {[%clk 0:02:13]} 8. exd6 {[%clk 0:02:31.9]}
8... Qxd6 {[%clk 0:02:13.9]} 9. Ne4 {[%clk 0:02:25.1]} 9... Qc7 {[%clk
0:02:03.2]} 10. O-O {[%clk 0:02:23.9]} 10... Nd4 {[%clk 0:01:56.4]} 11. Nxd4
{[%clk 0:02:20.7]} 11... cxd4 {[%clk 0:01:57.3]} 12. Re1 {[%clk 0:02:06.2]}
12... Nf6 {[%clk 0:01:36.6]} 13. Nxf6+ {[%clk 0:01:34.7]} 13... Bxf6 {[%clk
0:01:37.5]} 14. Bh6 {[%clk 0:01:35]} 14... e6 {[%clk 0:01:13.7]} 15. Qf3 {[%clk
0:01:31.7]} 15... Ke7 {[%clk 0:00:38.6]} 16. Bd2 {[%clk 0:01:15.5]} 16... a5
{[%clk 0:00:19.8]} 17. Re4 {[%clk 0:01:14.6]} 17... Bg7 {[%clk 0:00:11]} 18.
Bg5+ {[%clk 0:01:02.4]} 18... f6 {[%clk 0:00:10.7]} 19. Rae1 {[%clk 0:01:01.5]}
19... e5 {[%clk 0:00:03.6]} 20. Rxe5+ {[%clk 0:01:01]} 20... Kd8 {[%clk
0:00:02.1]} 21. Bxf6+ {[%clk 0:00:57.8]} 1-0

[Event "Late-Titled-Tuesday-Blitz-February-06-2024"]
[Site "Chess.com"]
[Date "2024.02.06"]
[Round "3"]
[White "el008"]
[Black "gunslinger222"]
[Result "1-0"]
[WhiteElo "2537"]
[BlackElo "2276"]
[TimeControl "180+1"]
[EndTime "14:28:13 PST"]
[Termination "el008 won on time"]

1. Nf3 {[%clk 0:03:00.9]} 1... d5 {[%clk 0:02:55.4]} 2. b3 {[%clk 0:03:00.9]}
2... Nc6 {[%clk 0:02:51.4]} 3. Bb2 {[%clk 0:03:01.5]} 3... f6 {[%clk 0:02:51.9]}
4. d4 {[%clk 0:02:59]} 4... Bg4 {[%clk 0:02:48.1]} 5. e3 {[%clk 0:02:57.5]} 5...
e5 {[%clk 0:02:45.1]} 6. dxe5 {[%clk 0:02:55.6]} 6... Bb4+ {[%clk 0:02:37.7]} 7.
c3 {[%clk 0:02:53.4]} 7... Bc5 {[%clk 0:02:34.4]} 8. Be2 {[%clk 0:02:39.3]} 8...
Qd7 {[%clk 0:02:28.6]} 9. b4 {[%clk 0:02:36.6]} 9... Bb6 {[%clk 0:02:19.8]} 10.
a4 {[%clk 0:02:36]} 10... a5 {[%clk 0:02:13.4]} 11. b5 {[%clk 0:02:30.9]} 11...
Nce7 {[%clk 0:02:11.3]} 12. exf6 {[%clk 0:02:26.5]} 12... Nxf6 {[%clk
0:02:02.4]} 13. h3 {[%clk 0:02:26.6]} 13... Bxf3 {[%clk 0:02:00.4]} 14. Bxf3
{[%clk 0:02:27.5]} 14... O-O {[%clk 0:01:55.7]} 15. c4 {[%clk 0:02:23]} 15...
Nf5 {[%clk 0:01:03.1]} 16. O-O {[%clk 0:02:03.8]} 16... Kh8 {[%clk 0:00:58.1]}
17. cxd5 {[%clk 0:01:53.9]} 17... Rae8 {[%clk 0:00:51.4]} 18. Nc3 {[%clk
0:01:50]} 18... Nh4 {[%clk 0:00:48.7]} 19. Bg4 {[%clk 0:01:46.1]} 19... Qd6
{[%clk 0:00:40.5]} 20. Ne2 {[%clk 0:01:27]} 20... Nxg4 {[%clk 0:00:32]} 21. hxg4
{[%clk 0:01:27.9]} 21... Qg6 {[%clk 0:00:17.9]} 22. Nf4 {[%clk 0:01:21.9]} 22...
Qg5 {[%clk 0:00:16.4]} 23. Ne6 {[%clk 0:01:14.9]} 23... Rxe6 {[%clk 0:00:14.8]}
24. dxe6 {[%clk 0:01:15.8]} 24... h5 {[%clk 0:00:11.4]} 25. e7 {[%clk
0:01:06.1]} 25... Qxe7 {[%clk 0:00:10.9]} 26. Qd5 {[%clk 0:01:06.7]} 26... hxg4
{[%clk 0:00:04.4]} 27. Qh5+ {[%clk 0:01:06.6]} 27... Kg8 {[%clk 0:00:05.1]} 28.
Qxg4 {[%clk 0:01:04.8]} 28... Bc5 {[%clk 0:00:03]} 29. Bxg7 {[%clk 0:01:02.7]}
1-0

[Event "Late-Titled-Tuesday-Blitz-February-06-2024"]
[Site "Chess.com"]
[Date "2024.02.06"]
[Round "3"]
[White "falzehope0"]
[Black "Bala-Afiada"]
[Result "1-0"]
[WhiteElo "2348"]
[BlackElo "2010"]
[TimeControl "180+1"]
[EndTime "14:28:15 PST"]
[Termination "falzehope0 won by resignation"]

1. d4 {[%clk 0:03:00.2]} 1... Nf6 {[%clk 0:02:59.1]} 2. e3 {[%clk 0:03:00]} 2...
e6 {[%clk 0:02:58.7]} 3. Bd3 {[%clk 0:02:59.5]} 3... d5 {[%clk 0:02:58.9]} 4. f4
{[%clk 0:02:59.4]} 4... g6 {[%clk 0:02:56]} 5. Nf3 {[%clk 0:02:59.6]} 5... Bg7
{[%clk 0:02:56.6]} 6. O-O {[%clk 0:02:59.4]} 6... O-O {[%clk 0:02:56.7]} 7. Nbd2
{[%clk 0:02:59.3]} 7... c5 {[%clk 0:02:56.9]} 8. c3 {[%clk 0:02:59.1]} 8... b6
{[%clk 0:02:57]} 9. Qe2 {[%clk 0:02:58.4]} 9... Bb7 {[%clk 0:02:55.1]} 10. Ne5
{[%clk 0:02:58.3]} 10... Qc8 {[%clk 0:02:54.2]} 11. b3 {[%clk 0:02:54.1]} 11...
Ba6 {[%clk 0:02:53.7]} 12. c4 {[%clk 0:02:50]} 12... dxc4 {[%clk 0:02:52.5]} 13.
bxc4 {[%clk 0:02:49.1]} 13... Bb7 {[%clk 0:02:48.2]} 14. Ba3 {[%clk 0:02:47]}
14... Rd8 {[%clk 0:02:43.4]} 15. Ndf3 {[%clk 0:02:45.2]} 15... Nbd7 {[%clk
0:02:36]} 16. Rab1 {[%clk 0:02:39.3]} 16... Be4 {[%clk 0:02:33.9]} 17. Qc2
{[%clk 0:02:31.7]} 17... Bxd3 {[%clk 0:02:33.2]} 18. Qxd3 {[%clk 0:02:30.5]}
18... cxd4 {[%clk 0:02:31.2]} 19. exd4 {[%clk 0:02:28.9]} 19... Nxe5 {[%clk
0:02:23.9]} 20. fxe5 {[%clk 0:02:26.1]} 20... Nd7 {[%clk 0:02:21.7]} 21. Qe2
{[%clk 0:02:22.5]} 21... Qa6 {[%clk 0:02:19.2]} 22. Bd6 {[%clk 0:02:06.8]} 22...
Rac8 {[%clk 0:02:11.3]} 23. Rbc1 {[%clk 0:02:04.5]} 23... Bf8 {[%clk 0:02:00.4]}
24. Ng5 {[%clk 0:02:00.7]} 24... Bxd6 {[%clk 0:01:55.4]} 25. exd6 {[%clk
0:01:49.2]} 25... Rf8 {[%clk 0:01:40.3]} 26. Rc2 {[%clk 0:01:09.8]} 26... h6
{[%clk 0:01:34.7]} 27. Ne4 {[%clk 0:01:06.3]} 27... Qb7 {[%clk 0:01:22.7]} 28.
c5 {[%clk 0:01:00]} 28... bxc5 {[%clk 0:01:19.4]} 29. Nxc5 {[%clk 0:00:57.8]}
29... Qc6 {[%clk 0:01:05.9]} 30. Rfc1 {[%clk 0:00:35.3]} 30... Qxd6 {[%clk
0:00:55.2]} 31. Qe3 {[%clk 0:00:34.2]} 31... Nxc5 {[%clk 0:00:54.1]} 32. dxc5
{[%clk 0:00:34.1]} 32... Qe5 {[%clk 0:00:42.2]} 33. Qxe5 {[%clk 0:00:33.3]} 1-0